fUSD/lending_fUSD_20250807
["ID","MTS","AMOUNT","RATE_DAILY","PERIOD"]
[377768717,1754544632854,-208.84,0.00018899,2]
[377768718,1754544632864,-434.7,0.000189,2]
[377768719,1754544632873,-208.84,0.00018909,2]
[377768720,1754544632882,-208.84,0.00018919,2]
[377768721,1754544632891,-150.0,0.00018922,2]
[377768722,1754544632900,-208.84,0.00018929,2]
[377768723,1754544632909,-150.0,0.0001893,2]
[377768724,1754544632918,-208.84,0.00018939,2]
[377768725,1754544632927,-6012.72488454,0.00018943,2]
[377768726,1754544632937,-208.84,0.00018949,2]
[377768727,1754544632946,-208.84,0.00018959,2]
[377768728,1754544632955,-208.84,0.00018969,2]
[377768729,1754544632965,-208.84,0.00018979,2]
[377768730,1754544632975,-208.84,0.00018989,2]
[377768731,1754544632983,-6235.19570527,0.00018998,2]
[377768732,1754544632991,-208.84,0.00018999,2]
[377768733,1754544633000,-174.26,0.00018999,2]
[377768734,1754544633010,-208.84,0.00019009,2]
[377768735,1754544633020,-208.84,0.00019019,2]
[377768736,1754544633029,-600.0,0.00019022,2]
[377768737,1754544633039,-256.53,0.00019022,2]
[377768738,1754544633050,-3086.14342401,0.00019028,2]
[377768739,1754544633060,-383.59576698,0.00019028,2]
[377768740,1754544633070,-500.0,0.00019028,2]
[377768741,1754544633080,-345.96603576,0.00019028,2]
[377768742,1754544633091,-500.0,0.00019028,2]
[377768743,1754544633100,-500.0,0.00019028,2]
[377768744,1754544633110,-500.0,0.00019028,2]
[377768745,1754544633120,-500.0,0.00019028,2]
[377768746,1754544633130,-500.0,0.00019028,2]
[377768747,1754544633140,-500.0,0.00019028,2]
[377768748,1754544633149,-500.0,0.00019028,2]
[377768749,1754544633159,-500.0,0.00019028,2]
[377768750,1754544633169,-500.0,0.00019028,2]
[377768751,1754544633179,-500.0,0.00019028,2]
[377768752,1754544633189,-360.63910451,0.00019028,2]
[377768753,1754544633199,-500.0,0.00019028,2]
[377768754,1754544633209,-500.0,0.00019028,2]
[377768755,1754544633218,-500.0,0.00019028,2]
[377768756,1754544633228,-500.0,0.00019028,2]
[377768757,1754544633238,-488.20379625,0.00019028,2]
[377768758,1754544633251,-11.79620375,0.00019028,2]
[377768759,1754544633260,-474.744537,0.00019028,2]
[377768760,1754544633273,-25.255463,0.00019028,2]
[377768761,1754544633282,-500.0,0.00019028,2]
[377768762,1754544633291,-500.0,0.00019028,2]
[377768763,1754544633301,-500.0,0.00019028,2]
[377768764,1754544633311,-500.0,0.00019028,2]
[377768765,1754544633321,-500.0,0.00019028,2]
[377768766,1754544633332,-500.0,0.00019028,2]
[377768767,1754544633341,-500.0,0.00019028,2]
[377768768,1754544633351,-500.0,0.00019028,2]
[377768769,1754544633361,-27.08726933,0.00019028,2]
[377768770,1754544633372,-538.97664112,0.00019028,2]
[377768771,1754544633382,-208.84,0.00019029,2]
[377768772,1754544633391,-102.01743125,0.00019029,2]
[377768773,1754544633422,-2006.83375026,0.00019029,2]
[377768774,1754544633434,-13053.96954241,0.00019029,2]
[377768775,1754544633445,-15989.46102724,0.00019029,2]
[377768776,1754544633457,-1714.49347382,0.00019029,2]
[377768777,1754544633468,-4312.9832329,0.00019029,2]
[377768778,1754544633504,-444.76154212,0.00019029,2]
[377768779,1754544633514,-208.84,0.00019039,2]
[377768780,1754544633524,-208.84,0.00019048,2]
[377768781,1754544633533,-1467.90419808,0.00019053,2]
[377768782,1754544633547,-4997.99374829,0.00019053,2]
[377768783,1754544633557,-208.84,0.00019058,2]
[377768784,1754544633566,-208.84,0.00019068,2]
[377768785,1754544633576,-208.84,0.00019078,2]
[377768786,1754544633586,-208.84,0.00019088,2]
[377768787,1754544633595,-6705.13617038,0.00019108,2]
[377768788,1754544633605,-1084.66,0.00019112,2]
[377768789,1754544633614,-778.2,0.00019123,2]
[377768790,1754544633624,-6953.22620868,0.00019163,2]
[377768791,1754544633634,-179.7695246,0.00019178,2]
[377768792,1754544633644,-7210.49557841,0.00019218,2]
[377768793,1754544633653,-3319.84207273,0.00019273,2]
[377768794,1754544633663,-263.93,0.00019286,2]
[377768795,1754544633673,-600.0,0.00019326,2]
[377768796,1754544633683,-1180.41,0.00019452,2]
[377768797,1754544633692,-1180.41,0.00019452,2]
[377768798,1754544633702,-1180.41,0.00019452,2]
[377768799,1754544633711,-168.25,0.00019529,2]
[377768800,1754544633720,-152.64,0.00019534,2]
[377768801,1754544633730,-150.0,0.00019598,4]
[377768802,1754544633739,-7533.03476928,0.00019618,2]
[377768803,1754544633749,-151.0,0.00019618,2]
[377768804,1754544633758,-269.206124,0.00019618,2]
[377768805,1754544633768,-1176.955,0.00019621,2]
[377768806,1754544633777,-455.07582633,0.000197,2]
[377768807,1754544633856,-308.63148115,0.000197,2]
[377768808,1754544633868,-265.29269252,0.000197,2]
[377768809,1754544633878,-451.857,0.00019717,2]
[377768810,1754544633888,-597.0,0.00019717,2]
[377768811,1754544633897,-1170.0,0.00019717,2]
[377768812,1754544633907,-486.138,0.00019717,2]
[377768813,1754544633917,-506.0541102,0.00019717,2]
[377768814,1754544633928,-302.9458898,0.00019717,2]
[377768815,1754544633937,-956.0,0.00019717,2]
[377768816,1754544633947,-153.501597,0.00019718,2]
[377768817,1754544633957,-189.538744,0.00019718,2]
[377768818,1754544633967,-151.0,0.00019718,2]
[377768819,1754544633976,-151.0,0.00019718,2]
[377768820,1754544633986,-151.0,0.00019718,2]
[377768821,1754544633996,-151.0,0.00019718,2]
[377768822,1754544634006,-229.59,0.00019743,2]
[377768823,1754544634015,-150.0,0.00019755,2]
[377768824,1754544634025,-421.3254,0.0001976,2]
[377768825,1754544634035,-200.0,0.0001977,2]
[377768826,1754544634045,-150.0,0.00019836,2]
[377768827,1754544634054,-1680.0,0.0001985,2]
[377768828,1754544634064,-421.32541,0.0001986,2]
[377768829,1754544634074,-239.65,0.00019871,2]
[377768830,1754544634083,-150.0,0.00019876,2]
[377768831,1754544634093,-1000.0,0.0001988,4]
[377768832,1754544634102,-300.0,0.0001988,2]
[377768833,1754544634113,-250.0,0.0001988,2]
[377768834,1754544634122,-1114.68593623,0.00019895,2]
[377768835,1754544634131,-5000.0,0.000199,2]
[377768836,1754544634141,-2100.0,0.000199,7]
[377768837,1754544634151,-211.19944189,0.000199,2]
[377768838,1754544634160,-250.0,0.00019917,2]
[377768839,1754544634170,-150.02208377,0.00019917,2]
[377768840,1754544634182,-149.97791623,0.00019917,2]
[377768841,1754544634192,-1764.77485825,0.00019962,2]
[377768842,1754544634214,-763.01568682,0.00019962,2]
[377768843,1754544634268,-456.74725538,0.00019962,2]
[377768844,1754544634277,-151.0,0.00019962,2]
[377768845,1754544634286,-202.44225382,0.00019972,2]
[377768846,1754544634297,-294.30198836,0.00019994,2]
[377768847,1754544634306,-2000.0,0.00019995,2]
[377768848,1754544634316,-1309.016,0.00019995,2]
[377768849,1754544634328,-127.18966717,0.00019995,2]
[377768850,1754544634342,-298.77045704,0.00019995,2]
[377768851,1754544634355,-291.91177145,0.00019995,2]
[377768852,1754544634366,-588.0,0.00019995,2]
[377768853,1754544634385,-995.32518737,0.00019995,2]
[377768854,1754544638036,-450.0,0.00019717,2]
[377769015,1754544639871,-1950.0,0.00019717,2]
[377769017,1754544639883,-3675.0,0.00019717,2]
[377769019,1754544639893,-4177.13166367,0.00019995,2]
[377769024,1754544639935,-650.76,0.00019995,2]
[377769324,1754544642833,-1176.73018685,0.00019995,2]
[377769326,1754544642845,-588.0,0.00019995,2]
[377769338,1754544642987,-46064.89916683,0.00019995,2]
[377769647,1754544646262,-384.50318454,0.00019817,2]
[377771778,1754544670133,8093.35465,7.945e-05,2]
[377771791,1754544721101,175.0,0.00019109,7]
[377771802,1754544841114,10000.0,0.00030137,120]
[377771806,1754544890335,226.75815765,0.00017932,2]
[377771811,1754544941274,151.0,0.0003013,120]
[377771812,1754545008236,500.0,0.00030136,120]
[377771813,1754545019803,500.0,0.00030135,120]
[377771815,1754545101471,-518.0,0.0001831,2]
[377771821,1754545148579,14375.810732,7.945e-05,2]
[377771822,1754545157907,150.0,0.000132,2]
[377771823,1754545158176,150.0,0.0001438,2]
[377771824,1754545158389,150.0,0.0001557,2]
[377771825,1754545158798,150.0,0.0001675,2]
[377771826,1754545159177,150.0,0.0001793,2]
[377771839,1754545333672,202.48,0.00013699,2]
[377771858,1754545553098,1000.0,0.0003,120]
[377771859,1754545554333,1000.0,0.0003,120]
[377771861,1754545564017,1000.0,0.0003,120]
[377771862,1754545564817,1000.0,0.0003,120]
[377771871,1754545687998,150.0,0.000122,2]
[377771872,1754545688378,150.0,0.0001338,2]
[377771873,1754545688720,150.0,0.0001457,2]
[377771875,1754545689113,150.0,0.0001575,2]
[377771876,1754545689477,150.0,0.0001693,2]
[377771877,1754545690135,184.0,0.0001812,2]
[377771880,1754545729686,1070.0,0.00023,60]
[377771883,1754545754011,296.98,0.000185,2]
[377771894,1754545832070,-250.0,0.00018516,2]
[377771895,1754545832082,-251.64312512,0.0001856,2]
[377771896,1754545832239,-109.03487488,0.0001856,2]
[377771897,1754545832249,-168.46,0.00018611,2]
[377771898,1754545832258,-300.0,0.00018629,2]
[377771899,1754545832268,-168.46,0.00018658,2]
[377771900,1754545832278,-250.0,0.00018698,2]
[377771901,1754545832287,-168.46,0.00018704,2]
[377771902,1754545832297,-56.19602096,0.00018748,2]
[377771903,1754545832311,-943.80397904,0.00018748,2]
[377771904,1754545832321,-168.46,0.00018751,2]
[377771905,1754545832332,-192.73602096,0.00018757,2]
[377771906,1754545832359,-107.26397904,0.00018757,2]
[377771907,1754545832369,-168.46,0.00018797,2]
[377771908,1754545832379,-150.0,0.00018888,2]
[377771909,1754545832389,-278.33072193,0.00018888,2]
[377771910,1754545832398,-155.09618344,0.00018888,2]
[377771911,1754545832409,-1000.0,0.00018892,2]
[377771912,1754545832418,-35.25120503,0.00018926,2]
[377771913,1754545832432,-964.74879497,0.00018926,2]
[377771914,1754545832442,-215.5,0.0001901,2]
[377771915,1754545832451,-277.35679052,0.00019025,2]
[377771916,1754545832461,-1200.0,0.00019035,2]
[377771917,1754545832471,-300.0,0.00019035,2]
[377771918,1754545832481,-1180.41,0.000191,2]
[377771919,1754545832491,-1180.41,0.000191,2]
[377771920,1754545832500,-806.99,0.000191,2]
[377771921,1754545832512,-736.66147354,0.00019107,2]
[377771922,1754545832522,-245.51610579,0.00019174,2]
[377771923,1754545832531,-1180.41,0.00019178,2]
[377771924,1754545832541,-180.0,0.000193,2]
[377771925,1754545832551,-1180.41,0.000194,2]
[377771926,1754545832560,-500.0,0.00019534,2]
[377771927,1754545832570,-600.0,0.00019608,2]
[377771928,1754545832581,-299.49,0.00019608,2]
[377771929,1754545832592,-188.46,0.0001963,2]
[377771930,1754545832603,-150.0,0.00019763,2]
[377771931,1754545832612,-445.56860993,0.0001979,2]
[377771932,1754545832682,-1755.49440655,0.0001979,2]
[377771933,1754545832692,-988.64185,0.000198,2]
[377771934,1754545832701,-600.0,0.00019805,2]
[377771935,1754545832711,-500.0,0.00019805,2]
[377771937,1754545832720,-151.0,0.00019805,2]
[377771938,1754545832730,-160.0,0.00019805,2]
[377771939,1754545832739,-500.0,0.00019805,2]
[377771940,1754545832748,-500.0,0.00019805,2]
[377771941,1754545832757,-500.0,0.00019805,2]
[377771942,1754545832767,-500.0,0.00019805,2]
[377771943,1754545832776,-500.0,0.00019805,2]
[377771944,1754545832785,-451.13677774,0.00019805,2]
[377771945,1754545832795,-500.0,0.00019805,2]
[377771946,1754545832804,-500.0,0.00019805,2]
[377771947,1754545832813,-500.0,0.00019805,2]
[377771949,1754545832823,-500.0,0.00019805,2]
[377771950,1754545832833,-500.0,0.00019805,2]
[377771951,1754545832843,-500.0,0.00019805,2]
[377771952,1754545832852,-500.0,0.00019805,2]
[377771953,1754545832862,-250.0,0.00019805,2]
[377771954,1754545832872,-151.0,0.00019805,2]
[377771955,1754545832883,-151.0,0.00019805,2]
[377771956,1754545832892,-151.0,0.00019805,2]
[377771957,1754545832902,-172.69269092,0.00019805,2]
[377771958,1754545832913,-151.0,0.00019805,2]
[377771959,1754545832923,-1000.0,0.00019805,2]
[377771960,1754545832932,-1000.0,0.00019805,2]
[377771961,1754545832942,-209.40437684,0.00019805,2]
[377771962,1754545832951,-300.0,0.00019805,2]
[377771963,1754545832961,-300.0,0.00019805,2]
[377771964,1754545832970,-300.0,0.00019805,2]
[377771965,1754545832979,-300.0,0.00019805,2]
[377771966,1754545832989,-300.0,0.00019805,2]
[377771967,1754545832998,-416.03518578,0.00019805,2]
[377771968,1754545833008,-300.0,0.00019805,2]
[377771969,1754545833018,-300.0,0.00019805,2]
[377771970,1754545833028,-300.0,0.00019805,2]
[377771971,1754545833038,-300.0,0.00019805,2]
[377771972,1754545833050,-300.0,0.00019805,2]
[377771973,1754545833060,-941.564,0.00019815,2]
[377771974,1754545833071,-809.0,0.00019817,2]
[377771975,1754545833081,-921.103,0.00019817,2]
[377771976,1754545833091,-236.497,0.00019817,2]
[377771977,1754545833102,-980.414,0.00019817,2]
[377771978,1754545833112,-21424.0,0.00019817,2]
[377771979,1754545833123,-6075.0,0.00019817,2]
[377771980,1754545833133,-4255.295,0.00019817,2]
[377771981,1754545833143,-200.0,0.00019819,2]
[377771982,1754545833153,-975.35019421,0.000199,2]
[377771983,1754545833163,-5000.0,0.000199,2]
[377771984,1754545833173,-988.64185,0.000199,2]
[377771985,1754545833183,-2100.0,0.000199,7]
[377771986,1754545833193,-206.37934771,0.000199,2]
[377771987,1754545833202,-215.5,0.00019961,2]
[377771988,1754545833212,-3905.4203359,0.00019971,2]
[377771989,1754545833269,-385.42858505,0.00019971,2]
[377771990,1754545833281,-344.95060418,0.00019971,2]
[377771991,1754545833293,-462.357989,0.00019971,2]
[377771992,1754545833313,-425.642011,0.00019971,2]
[377771993,1754545833325,-784.54454562,0.00019971,2]
[377771995,1754545833681,-609.41426251,0.00019971,2]
[377771996,1754545833693,-1242.35064271,0.00019971,2]
[377771997,1754545833707,-297.31,0.00019971,2]
[377771999,1754545837974,-500.0,0.00019971,2]
[377772000,1754545837985,-17111.66528193,0.00019971,2]
[377772001,1754545838087,-529.08259253,0.00019971,2]
[377772002,1754545838097,-150.0,0.00019988,2]
[377772003,1754545838107,-500.0,0.00019994,2]
[377772004,1754545838117,-234.93404906,0.00019994,2]
[377772011,1754545838308,-265.06595094,0.00019994,2]
[377772013,1754545838318,-500.0,0.00019994,2]
[377772015,1754545838327,-228.92089621,0.00019994,2]
[377772017,1754545838338,-4981.16369661,0.00019995,2]
[377772191,1754545840099,-180.72,0.00019481,2]
[377772193,1754545840109,-865.0,0.00019817,2]
[377772195,1754545840118,-53031.76570183,0.00019995,2]
[377772197,1754545840128,-300.457461,0.00019995,2]
[377772199,1754545840137,-151.0,0.00019995,2]
[377772201,1754545840150,-151.0,0.00019995,2]
[377772203,1754545840160,-151.0,0.00019995,2]
[377772205,1754545840169,-1214.0,0.00019995,2]
[377772206,1754545840178,-300.0,0.00019999,2]
[377772208,1754545840187,-206.01139185,0.00019999,2]
[377772210,1754545840199,-500.0,0.0002,2]
[377772212,1754545840210,-1200.26083675,0.0002,2]
[377772214,1754545840219,-39250.52484499,0.0002,14]
[377772216,1754545840234,-2576.71944886,0.0002,14]
[377772218,1754545840247,-5179.38805249,0.0002,14]
[377772220,1754545840258,-1650.00003219,0.0002,14]
[377772222,1754545840269,-11178.45677496,0.0002,14]
[377772224,1754545840280,-1500.04102813,0.0002,14]
[377772239,1754545840455,-8203.69220742,0.0002,14]
[377772241,1754545840477,-505.76499998,0.0002,14]
[377772244,1754545840500,-2903.52874735,0.0002,14]
[377772251,1754545840567,-296.3841437,0.0002,14]
[377772253,1754545840579,-201951.54910358,0.0002,14]
[377772255,1754545840591,-11347.876955,0.0002,14]
[377772257,1754545840603,-675.82255004,0.0002,14]
[377772260,1754545840625,-8742.08704983,0.0002,14]
[377772268,1754545840716,-421.0444,0.0002,14]
[377772270,1754545840728,-465.9952148,0.0002,14]
[377772273,1754545840747,-9277.65200465,0.0002,14]
[377772275,1754545840757,-20050.3549623,0.0002,14]
[377772277,1754545840768,-4024.85750395,0.0002,14]
[377772279,1754545840779,-500.0,0.0002,14]
[377772502,1754545843227,-3129.7843919,0.000199,2]
[377772769,1754545846074,-554.32185465,0.00019895,2]
[377772795,1754545846335,-7615.34656413,0.00019895,2]
[377772798,1754545846346,-3295.23016065,0.000199,2]
[377772799,1754545846356,-21730.73162196,0.0002,14]
[377772977,1754545848116,228.17,0.00015068,2]
[377772999,1754545848323,228.17,0.00016744,2]
[377773021,1754545848534,228.17,0.0001842,2]
[377773368,1754545893966,500.0,0.0001846,2]
[377773385,1754546005262,250.0,0.00015,2]
[377773386,1754546006315,300.0,0.00017,2]
[377773389,1754546039620,2800.0,0.00030137,120]
[377773497,1754546072905,666.0,0.00018984,3]
[377773505,1754546215292,150.0,0.000131,2]
[377773506,1754546220260,150.0,0.0001428,2]
[377773507,1754546220667,150.0,0.0001547,2]
[377773508,1754546221095,150.0,0.0001665,2]
[377773509,1754546221470,150.0,0.0001783,2]
[377773520,1754546396510,426.8878863,0.0002,30]
[377773521,1754546415441,517.0,0.00018479,2]
[377773538,1754546568847,400.0,0.00030136,120]
[377773542,1754546570962,282.0,0.0003,120]
[377773551,1754546654399,175.0,0.00018617,7]
[377773555,1754546726382,207.49,0.00013699,2]
[377773557,1754546735332,499.0,0.00030137,120]
[377773558,1754546746565,150.0,0.000131,2]
[377773559,1754546746921,150.0,0.0001428,2]
[377773560,1754546747656,150.0,0.0001547,2]
[377773561,1754546748002,150.0,0.0001665,2]
[377773562,1754546748581,150.0,0.0001783,2]
[377773571,1754546910579,1706.737726,0.00018482,2]
[377773574,1754546961475,205.53,0.00018497,2]
[377773576,1754546992021,655.65,0.00018495,2]
[377773578,1754547014750,193.94,0.00015068,2]
[377773579,1754547015733,193.94,0.00016692,2]
[377773580,1754547015828,193.94,0.00018315,2]
[377773581,1754547032351,-329.24167954,0.00018526,2]
[377773582,1754547032362,-870.75832046,0.00018526,2]
[377773583,1754547032371,-300.0,0.00018526,2]
[377773584,1754547032382,-17578.50251651,0.00018527,2]
[377773585,1754547032393,-677.31590528,0.00018527,2]
[377773586,1754547032505,-417.49656767,0.00018527,2]
[377773587,1754547032516,-888.0,0.00018527,2]
[377773588,1754547032562,-378.01295428,0.00018527,2]
[377773589,1754547032586,-747.58213346,0.00018527,2]
[377773590,1754547032618,-3213.0899228,0.00018527,2]
[377773591,1754547032631,-250.0,0.00018575,2]
[377773592,1754547032641,-250.0,0.0001859,2]
[377773593,1754547032651,-299.25,0.00018604,2]
[377773594,1754547032660,-150.0,0.00018616,2]
[377773595,1754547032670,-183.13,0.00018659,2]
[377773596,1754547032679,-210.23,0.00018701,2]
[377773597,1754547032689,-165.4,0.00018738,2]
[377773598,1754547032698,-298.88221199,0.00018745,2]
[377773599,1754547032707,-184.77798799,0.00018831,2]
[377773600,1754547032716,-183.13,0.00018846,2]
[377773601,1754547032725,-200.0,0.00018946,2]
[377773603,1754547032735,-175.0,0.00018956,2]
[377773605,1754547032744,-274.11,0.0001897,2]
[377773607,1754547032753,-150.0,0.0001902,2]
[377773609,1754547032762,-213.79,0.00019033,2]
[377773611,1754547032772,-170.06,0.00019141,2]
[377773613,1754547032781,-156.587,0.00019178,2]
[377773615,1754547032790,-1120.51072064,0.00019178,2]
[377773814,1754547038671,-400.0,0.00019178,2]
[377773815,1754547038684,-2864.75927936,0.00019178,2]
[377773816,1754547038694,-151.0,0.00019185,2]
[377773817,1754547038703,-277.35679052,0.00019185,2]
[377773818,1754547038713,-822.11447891,0.00019255,2]
[377773819,1754547038723,-188.33,0.00019383,2]
[377773820,1754547038732,-1214.44,0.00019413,2]
[377773821,1754547038742,-600.0,0.00019497,2]
[377773822,1754547038751,-230.3,0.00019497,2]
[377773823,1754547038761,-311.29722507,0.000196,2]
[377773824,1754547038771,-2479.91230463,0.000196,2]
[377773825,1754547038780,-329.74537788,0.00019684,2]
[377773826,1754547038790,-500.0,0.00019684,2]
[377773827,1754547038799,-160.0,0.00019684,2]
[377773828,1754547038809,-500.0,0.00019684,2]
[377773829,1754547038818,-500.0,0.00019684,2]
[377773831,1754547038827,-500.0,0.00019684,2]
[377773833,1754547038837,-300.0,0.00019684,2]
[377773834,1754547038845,-300.0,0.00019684,2]
[377773835,1754547038855,-300.0,0.00019684,2]
[377773836,1754547038864,-151.0,0.00019684,2]
[377773837,1754547038873,-151.0,0.00019684,2]
[377773838,1754547038883,-151.0,0.00019684,2]
[377773839,1754547038892,-151.0,0.00019684,2]
[377773840,1754547038902,-151.0,0.00019684,2]
[377773841,1754547038911,-236.64801387,0.00019684,2]
[377773842,1754547038921,-500.0,0.00019684,2]
[377773843,1754547038930,-250.0,0.00019684,2]
[377773844,1754547038939,-92.53389956,0.00019684,2]
[377773845,1754547038989,-157.46610044,0.00019684,2]
[377773846,1754547038999,-250.0,0.00019684,2]
[377773847,1754547039008,-188.88722588,0.00019684,2]
[377773848,1754547039126,-61.11277412,0.00019684,2]
[377773849,1754547039135,-250.0,0.00019684,2]
[377773850,1754547039145,-250.0,0.00019684,2]
[377773851,1754547039154,-250.0,0.00019684,2]
[377773852,1754547039164,-250.0,0.00019684,2]
[377773853,1754547039173,-250.0,0.00019684,2]
[377773854,1754547039183,-250.0,0.00019684,2]
[377773855,1754547039192,-250.0,0.00019684,2]
[377773856,1754547039202,-250.0,0.00019684,2]
[377773857,1754547039211,-250.0,0.00019684,2]
[377773858,1754547039221,-250.0,0.00019684,2]
[377773859,1754547039230,-250.0,0.00019684,2]
[377773860,1754547039239,-250.0,0.00019684,2]
[377773861,1754547039249,-250.0,0.00019684,2]
[377773862,1754547039258,-151.0,0.00019684,2]
[377773863,1754547039268,-151.0,0.00019684,2]
[377773864,1754547039277,-151.0,0.00019684,2]
[377773865,1754547039287,-500.0,0.00019684,2]
[377773866,1754547039297,-500.0,0.00019684,2]
[377773867,1754547039306,-500.0,0.00019684,2]
[377773868,1754547039315,-500.0,0.00019684,2]
[377773869,1754547039324,-500.0,0.00019684,2]
[377773870,1754547039334,-313.68873139,0.00019684,2]
[377773871,1754547039343,-4959.76,0.00019696,2]
[377773872,1754547039353,-4959.76,0.000197,2]
[377773873,1754547039362,-822.11447891,0.00019715,2]
[377773874,1754547039371,-150.0,0.00019774,2]
[377773875,1754547039380,-1047.49,0.00019776,2]
[377773876,1754547039390,-330.03612132,0.00019776,2]
[377773877,1754547039399,-187.455,0.00019776,2]
[377773878,1754547039408,-1000.0,0.00019785,2]
[377773879,1754547039417,-564.0,0.00019786,2]
[377773880,1754547039426,-597.0,0.00019786,2]
[377773881,1754547039435,-1651.0,0.00019786,2]
[377773882,1754547039444,-4951.449,0.00019788,2]
[377773883,1754547039453,-4141.0,0.00019788,2]
[377773884,1754547039463,-7820.623,0.00019788,2]
[377773885,1754547039472,-2479.88,0.00019791,2]
[377773886,1754547039481,-421.32541,0.000198,2]
[377773887,1754547039491,-7352.70157692,0.000198,2]
[377773888,1754547039501,-2500.0,0.000198,2]
[377773889,1754547039511,-11310.80751305,0.0001981,2]
[377773890,1754547039520,-822.11447891,0.00019813,2]
[377773891,1754547039529,-150.0,0.00019817,2]
[377773892,1754547039539,-1531.737,0.00019817,2]
[377773893,1754547039548,-955.0,0.00019817,2]
[377773894,1754547039557,-1252.0,0.00019817,2]
[377773895,1754547039566,-809.0,0.00019817,2]
[377773896,1754547039576,-1292.0,0.00019817,2]
[377773897,1754547039585,-2023.0,0.00019817,2]
[377773898,1754547039594,-722.841,0.00019817,2]
[377773899,1754547039604,-200.0,0.00019838,2]
[377773900,1754547039614,-205.06,0.00019854,2]
[377773901,1754547039627,-335.4,0.0001989,3]
[377773902,1754547039638,-1000.0,0.00019896,2]
[377773903,1754547039647,-853.43141989,0.00019896,2]
[377773904,1754547039656,-5880.32478437,0.00019896,2]
[377773905,1754547039665,-207.32120856,0.00019896,2]
[377773906,1754547039674,-1000.0,0.00019899,2]
[377773907,1754547039683,-1000.0,0.00019899,2]
[377773908,1754547039692,-5855.1177,0.000199,2]
[377773909,1754547039702,-113404.6593,0.000199,2]
[377773910,1754547039712,-1000.0,0.000199,2]
[377773911,1754547039721,-5000.0,0.000199,2]
[377773912,1754547039730,-1000.0,0.000199,2]
[377773913,1754547039739,-1000.0,0.000199,2]
[377773914,1754547039749,-1000.0,0.000199,2]
[377773915,1754547039758,-1000.0,0.000199,2]
[377773916,1754547039768,-1000.0,0.000199,2]
[377773917,1754547039777,-1000.0,0.000199,2]
[377773918,1754547039787,-1000.0,0.000199,2]
[377773919,1754547039796,-1000.0,0.000199,2]
[377773920,1754547039805,-1000.0,0.000199,2]
[377773921,1754547039815,-1000.0,0.000199,2]
[377773922,1754547039824,-1000.0,0.000199,2]
[377773923,1754547039833,-1000.0,0.000199,2]
[377773924,1754547039842,-1130.9048,0.000199,2]
[377773925,1754547039852,-421.32541,0.000199,2]
[377773926,1754547039861,-2600.0,0.000199,7]
[377773927,1754547039874,-3317.39779525,0.00019911,2]
[377773928,1754547039895,-150.0,0.00019934,2]
[377773929,1754547039905,-193.94,0.00019938,2]
[377773930,1754547039915,-500.0,0.0001998,2]
[377773931,1754547039924,-500.0,0.0001998,2]
[377773932,1754547039935,-500.0,0.0001998,2]
[377773933,1754547039944,-500.0,0.0001998,2]
[377773934,1754547039954,-500.0,0.0001998,2]
[377773935,1754547039964,-500.0,0.0001998,2]